[Event "January 9 Late 2024"]
[Site "https://www.chess.com"]
[Date "2024.01.09"]
[Round "11"]
[White "Jose Iraeta, Alejandro"]
[Black "Martinez Pla, Xavier"]
[Result "1-0"]
[Board "84"]
[TimeControl "180+1"]
[WhiteFideId "2226537"]
[BlackFideId "32074271"]
[WhiteElo "2276"]
[BlackElo "2513"]
[WhiteTeam "ESP"]
[BlackTeam "ESP"]
[WhiteClock "0:00:05"]
[BlackClock "0:00:08"]

1. e4 {[%clk 0:02:50]}  c5 {[%clk 0:02:58]} 2. Nf3 {[%clk 0:02:50]}  a6 {[%clk 0:02:59]} 3. d4 {[%clk 0:02:50]}  cxd4 {[%clk 0:02:59]} 4. Nxd4 {[%clk 0:02:51]}  Nf6 {[%clk 0:02:59]} 5. Nc3 {[%clk 0:02:51]}  e5 {[%clk 0:02:59]} 6. Nf3 {[%clk 0:02:46]}  Bb4 {[%clk 0:02:58]} 7. Bd2 {[%clk 0:02:33]}  Nc6 {[%clk 0:02:56]} 8. Bd3 {[%clk 0:02:27]}  Bxc3 {[%clk 0:02:56]} 9. Bxc3 {[%clk 0:02:28]}  d5 {[%clk 0:02:57]} 10. exd5 {[%clk 0:02:15]}  Qxd5 {[%clk 0:02:55]} 11. Qe2 {[%clk 0:02:06]}  Bg4 {[%clk 0:02:50]} 12. Rd1 {[%clk 0:01:56]}  Bxf3 {[%clk 0:02:48]} 13. gxf3 {[%clk 0:01:55]}  Qe6 {[%clk 0:02:34]} 14. Bc4 {[%clk 0:01:48]}  Qe7 {[%clk 0:02:33]} 15. Qe3 {[%clk 0:01:34]}  O-O {[%clk 0:02:31]} 16. Bb3 {[%clk 0:01:27]}  Nh5 {[%clk 0:02:26]} 17. Rg1 {[%clk 0:01:24]}  Nf4 {[%clk 0:02:21]} 18. Ba4 {[%clk 0:01:10]}  b5 {[%clk 0:02:17]} 19. Bb3 {[%clk 0:01:09]}  b4 {[%clk 0:02:12]} 20. Bd2 {[%clk 0:01:09]}  Nd4 {[%clk 0:02:10]} 21. Qe4 {[%clk 0:00:56]}  Ng6 {[%clk 0:02:02]} 22. Bg5 {[%clk 0:00:26]}  Qc5 {[%clk 0:01:54]} 23. h4 {[%clk 0:00:25]}  Nxb3 {[%clk 0:01:54]} 24. axb3 {[%clk 0:00:23]}  f5 {[%clk 0:01:43]} 25. Qd5+ {[%clk 0:00:17]}  Qxd5 {[%clk 0:01:43]} 26. Rxd5 {[%clk 0:00:18]}  Rfe8 {[%clk 0:01:40]} 27. h5 {[%clk 0:00:14]}  Nf8 {[%clk 0:01:40]} 28. Bd2 {[%clk 0:00:13]}  a5 {[%clk 0:01:26]} 29. Ke2 {[%clk 0:00:12]}  Ne6 {[%clk 0:01:21]} 30. c3 {[%clk 0:00:08]}  bxc3 {[%clk 0:01:05]} 31. bxc3 {[%clk 0:00:08]}  a4 {[%clk 0:01:04]} 32. bxa4 {[%clk 0:00:06]}  Rxa4 {[%clk 0:01:05]} 33. Rxe5 {[%clk 0:00:05]}  Ra2 {[%clk 0:00:59]} 34. Kd3 {[%clk 0:00:04]}  Rd8+ {[%clk 0:00:59]} 35. Kc4 {[%clk 0:00:03]}  Ra6 {[%clk 0:00:54]} 36. Be3 {[%clk 0:00:02]}  Rc8+ {[%clk 0:00:51]} 37. Kd3 {[%clk 0:00:02]}  Rd6+ {[%clk 0:00:51]} 38. Bd4 {[%clk 0:00:03]}  Rcd8 {[%clk 0:00:46]} 39. Rge1 {[%clk 0:00:02]}  Nxd4 {[%clk 0:00:36]} 40. cxd4 {[%clk 0:00:02]}  Rxd4+ {[%clk 0:00:37]} 41. Ke3 {[%clk 0:00:02]}  g6 {[%clk 0:00:30]} 42. hxg6 {[%clk 0:00:03]}  hxg6 {[%clk 0:00:31]} 43. Rg1 {[%clk 0:00:03]}  Kf7 {[%clk 0:00:30]} 44. Ra5 {[%clk 0:00:03]}  R4d6 {[%clk 0:00:29]} 45. Ra7+ {[%clk 0:00:03]}  Kf6 {[%clk 0:00:29]} 46. Ra3 {[%clk 0:00:02]}  g5 {[%clk 0:00:29]} 47. f4 {[%clk 0:00:02]}  g4 {[%clk 0:00:27]} 48. f3 {[%clk 0:00:02]}  Re8+ {[%clk 0:00:20]} 49. Kf2 {[%clk 0:00:03]}  Rd2+ {[%clk 0:00:20]} 50. Kg3 {[%clk 0:00:03]}  Rg8 {[%clk 0:00:18]} 51. Rh1 {[%clk 0:00:01]}  gxf3+ {[%clk 0:00:17]} 52. Kxf3 {[%clk 0:00:02]}  Rd7 {[%clk 0:00:12]} 53. Ra6+ {[%clk 0:00:02]}  Ke7 {[%clk 0:00:12]} 54. Rh7+ {[%clk 0:00:02]}  Kd8 {[%clk 0:00:12]} 55. Ra8+ {[%clk 0:00:02]}  Kc7 {[%clk 0:00:12]} 56. Rxd7+ {[%clk 0:00:02]}  Kxd7 {[%clk 0:00:12]} 57. Rxg8 {[%clk 0:00:03]}  Ke6 {[%clk 0:00:10]} 58. Rg5 {[%clk 0:00:04]}  Kf6 {[%clk 0:00:08]} 59. Kg3 {[%clk 0:00:05]} 1-0

[Event "January 9 Late 2024"]
[Site "https://www.chess.com"]
[Date "2024.01.09"]
[Round "11"]
[White "Krzywda, Andrzej"]
[Black "Kraiouchkine, Nikita"]
[Result "0-1"]
[Board "86"]
[TimeControl "180+1"]
[WhiteFideId "1114565"]
[BlackFideId "2607140"]
[WhiteElo "2419"]
[BlackElo "2606"]
[WhiteTeam "POL"]
[BlackTeam "CAN"]
[WhiteClock "0:00:08"]
[BlackClock "0:00:07"]

1. e4 {[%clk 0:03:00]}  e5 {[%clk 0:02:59]} 2. Nf3 {[%clk 0:03:01]}  Nc6 {[%clk 0:02:59]} 3. Bb5 {[%clk 0:03:01]}  f5 {[%clk 0:02:59]} 4. d3 {[%clk 0:03:00]}  fxe4 {[%clk 0:03:00]} 5. dxe4 {[%clk 0:03:01]}  Nf6 {[%clk 0:03:00]} 6. O-O {[%clk 0:03:01]}  Bc5 {[%clk 0:03:00]} 7. Bc4 {[%clk 0:03:01]}  Qe7 {[%clk 0:03:00]} 8. a4 {[%clk 0:02:57]}  d6 {[%clk 0:02:57]} 9. Nc3 {[%clk 0:02:49]}  Be6 {[%clk 0:02:43]} 10. Bxe6 {[%clk 0:02:49]}  Qxe6 {[%clk 0:02:44]} 11. Nd5 {[%clk 0:02:50]}  O-O-O {[%clk 0:01:53]} 12. c3 {[%clk 0:02:48]}  Nxe4 {[%clk 0:01:52]} 13. b4 {[%clk 0:02:47]}  Bxf2+ {[%clk 0:01:42]} 14. Rxf2 {[%clk 0:02:48]}  Nxf2 {[%clk 0:01:43]} 15. Kxf2 {[%clk 0:02:48]}  e4 {[%clk 0:01:43]} 16. Ng5 {[%clk 0:02:31]}  Qf5+ {[%clk 0:01:19]} 17. Kg1 {[%clk 0:02:32]}  h6 {[%clk 0:01:19]} 18. b5 {[%clk 0:02:32]}  hxg5 {[%clk 0:01:15]} 19. bxc6 {[%clk 0:02:32]}  Qe5 {[%clk 0:01:15]} 20. cxb7+ {[%clk 0:02:20]}  Kxb7 {[%clk 0:00:47]} 21. Rb1+ {[%clk 0:02:19]}  Kc8 {[%clk 0:00:48]} 22. Qg4+ {[%clk 0:02:18]}  Rd7 {[%clk 0:00:48]} 23. Ne3 {[%clk 0:01:41]}  Qxh2+ {[%clk 0:00:32]} 24. Kf2 {[%clk 0:01:41]}  Rf8+ {[%clk 0:00:31]} 25. Ke2 {[%clk 0:01:41]}  Qf4 {[%clk 0:00:17]} 26. Bd2 {[%clk 0:01:29]}  Qxg4+ {[%clk 0:00:14]} 27. Nxg4 {[%clk 0:01:29]}  Rdf7 {[%clk 0:00:13]} 28. Be3 {[%clk 0:01:28]}  c6 {[%clk 0:00:12]} 29. c4 {[%clk 0:01:24]}  Rb7 {[%clk 0:00:12]} 30. Rxb7 {[%clk 0:01:18]}  Kxb7 {[%clk 0:00:13]} 31. Bd4 {[%clk 0:01:15]}  Rf5 {[%clk 0:00:12]} 32. Bxg7 {[%clk 0:01:12]}  Ra5 {[%clk 0:00:12]} 33. Bf8 {[%clk 0:01:11]}  d5 {[%clk 0:00:11]} 34. cxd5 {[%clk 0:01:01]}  cxd5 {[%clk 0:00:12]} 35. Be7 {[%clk 0:00:59]}  Rxa4 {[%clk 0:00:10]} 36. Ne5 {[%clk 0:00:45]}  Ra2+ {[%clk 0:00:08]} 37. Kf1 {[%clk 0:00:46]}  a5 {[%clk 0:00:06]} 38. Bxg5 {[%clk 0:00:43]}  a4 {[%clk 0:00:07]} 39. Bf6 {[%clk 0:00:41]}  a3 {[%clk 0:00:06]} 40. g4 {[%clk 0:00:42]}  Ra1+ {[%clk 0:00:03]} 41. Ke2 {[%clk 0:00:40]}  a2 {[%clk 0:00:04]} 42. Nd7 {[%clk 0:00:37]}  Rg1 {[%clk 0:00:04]} 43. Ke3 {[%clk 0:00:26]}  a1=Q {[%clk 0:00:03]} 44. Bxa1 {[%clk 0:00:26]}  Rxa1 {[%clk 0:00:04]} 45. g5 {[%clk 0:00:23]}  Rg1 {[%clk 0:00:04]} 46. Kf4 {[%clk 0:00:23]}  Kc6 {[%clk 0:00:03]} 47. Ne5+ {[%clk 0:00:23]}  Kd6 {[%clk 0:00:04]} 48. Ng4 {[%clk 0:00:23]}  Ke6 {[%clk 0:00:05]} 49. g6 {[%clk 0:00:23]}  Rg2 {[%clk 0:00:03]} 50. Kg5 {[%clk 0:00:14]}  Ke7 {[%clk 0:00:03]} 51. Kf5 {[%clk 0:00:12]}  Kf8 {[%clk 0:00:02]} 52. Nf6 {[%clk 0:00:11]}  e3 {[%clk 0:00:01]} 53. Nxd5 {[%clk 0:00:08]}  e2 {[%clk 0:00:02]} 54. Nf4 {[%clk 0:00:08]}  Rf2 {[%clk 0:00:02]} 55. g7+ {[%clk 0:00:07]}  Kg8 {[%clk 0:00:02]} 56. Kg4 {[%clk 0:00:08]}  Rxf4+ {[%clk 0:00:03]} 57. Kxf4 {[%clk 0:00:08]}  e1=Q {[%clk 0:00:04]} 58. Kg5 {[%clk 0:00:09]}  Kxg7 {[%clk 0:00:04]} 59. Kh5 {[%clk 0:00:08]}  Qe5+ {[%clk 0:00:05]} 60. Kh4 {[%clk 0:00:09]}  Kf6 {[%clk 0:00:05]} 61. Kg4 {[%clk 0:00:09]}  Qe4+ {[%clk 0:00:06]} 62. Kh5 {[%clk 0:00:10]}  Kf5 {[%clk 0:00:07]} 63. Kh6 {[%clk 0:00:11]}  Qe7 {[%clk 0:00:06]} 64. Kh5 {[%clk 0:00:08]}  Qg5# {[%clk 0:00:07]} 0-1

[Event "January 9 Late 2024"]
[Site "https://www.chess.com"]
[Date "2024.01.09"]
[Round "11"]
[White "Marchesich, Giovanni"]
[Black "Estrada Nieto, Julian"]
[Result "0-1"]
[Board "88"]
[TimeControl "180+1"]
[WhiteFideId "2824790"]
[BlackFideId "5101018"]
[WhiteElo "2408"]
[BlackElo "2575"]
[WhiteTeam "ITA"]
[BlackTeam "ESP"]
[WhiteClock "0:01:01"]
[BlackClock "0:01:10"]

1. d4 {[%clk 0:03:00]}  d5 {[%clk 0:02:59]} 2. Nc3 {[%clk 0:03:01]}  Nf6 {[%clk 0:02:58]} 3. Bf4 {[%clk 0:03:01]}  c6 {[%clk 0:02:58]} 4. e3 {[%clk 0:03:01]}  Bf5 {[%clk 0:02:59]} 5. Bd3 {[%clk 0:03:01]}  Bxd3 {[%clk 0:02:58]} 6. Qxd3 {[%clk 0:03:02]}  Nbd7 {[%clk 0:02:58]} 7. Nf3 {[%clk 0:03:02]}  e6 {[%clk 0:02:58]} 8. O-O {[%clk 0:03:03]}  Be7 {[%clk 0:02:58]} 9. Ne5 {[%clk 0:03:03]}  O-O {[%clk 0:02:57]} 10. f3 {[%clk 0:03:01]}  Nxe5 {[%clk 0:02:55]} 11. Bxe5 {[%clk 0:03:00]}  Nd7 {[%clk 0:02:50]} 12. Bg3 {[%clk 0:03:00]}  c5 {[%clk 0:02:49]} 13. Ne2 {[%clk 0:02:57]}  Qb6 {[%clk 0:02:45]} 14. Rab1 {[%clk 0:02:55]}  Rac8 {[%clk 0:02:41]} 15. c3 {[%clk 0:02:55]}  Bf6 {[%clk 0:02:31]} 16. Bf2 {[%clk 0:02:43]}  Rfd8 {[%clk 0:02:29]} 17. e4 {[%clk 0:02:40]}  cxd4 {[%clk 0:02:25]} 18. cxd4 {[%clk 0:02:37]}  Qa5 {[%clk 0:02:16]} 19. e5 {[%clk 0:02:36]}  Be7 {[%clk 0:02:15]} 20. Nc3 {[%clk 0:02:36]}  Nb6 {[%clk 0:02:12]} 21. f4 {[%clk 0:02:12]}  Qa6 {[%clk 0:02:00]} 22. Qxa6 {[%clk 0:01:46]}  bxa6 {[%clk 0:01:59]} 23. Rfc1 {[%clk 0:01:47]}  Nc4 {[%clk 0:01:58]} 24. Rc2 {[%clk 0:01:45]}  Rb8 {[%clk 0:01:33]} 25. Na4 {[%clk 0:01:43]}  Na3 {[%clk 0:01:31]} 26. Rc7 {[%clk 0:01:31]}  Nxb1 {[%clk 0:01:31]} 27. Rxe7 {[%clk 0:01:31]}  Rdc8 {[%clk 0:01:23]} 28. g3 {[%clk 0:01:25]}  Nd2 {[%clk 0:01:19]} 29. b3 {[%clk 0:01:20]}  Rc1+ {[%clk 0:01:15]} 30. Kg2 {[%clk 0:01:19]}  Rc2 {[%clk 0:01:16]} 31. Rxa7 {[%clk 0:01:07]}  Ne4 {[%clk 0:01:14]} 32. Nc5 {[%clk 0:01:02]}  Rxf2+ {[%clk 0:01:13]} 33. Kg1 {[%clk 0:01:02]}  Rxa2 {[%clk 0:01:10]} 34. Rxa6 {[%clk 0:01:01]} 0-1

[Event "January 9 Late 2024"]
[Site "https://www.chess.com"]
[Date "2024.01.09"]
[Round "11"]
[White "Martin Barcelo, Carles"]
[Black "Argandona Riveiro, Inigo"]
[Result "1-0"]
[Board "90"]
[TimeControl "180+1"]
[WhiteFideId "24561444"]
[BlackFideId "2212072"]
[WhiteElo "2507"]
[BlackElo "2404"]
[WhiteTeam "ESP"]
[BlackTeam "ESP"]
[WhiteClock "0:00:54"]
[BlackClock "0:00:27"]

1. e4 {[%clk 0:03:00]}  d6 {[%clk 0:03:00]} 2. d4 {[%clk 0:02:58]}  Nf6 {[%clk 0:03:01]} 3. Nc3 {[%clk 0:02:57]}  e5 {[%clk 0:03:02]} 4. Nf3 {[%clk 0:02:54]}  exd4 {[%clk 0:03:02]} 5. Qxd4 {[%clk 0:02:35]}  Be7 {[%clk 0:03:00]} 6. Bg5 {[%clk 0:02:29]}  O-O {[%clk 0:02:58]} 7. O-O-O {[%clk 0:02:25]}  h6 {[%clk 0:02:58]} 8. Bf4 {[%clk 0:02:20]}  Nc6 {[%clk 0:02:58]} 9. Qd2 {[%clk 0:02:20]}  Be6 {[%clk 0:02:51]} 10. Kb1 {[%clk 0:02:19]}  a6 {[%clk 0:02:51]} 11. Nd5 {[%clk 0:02:17]}  Bxd5 {[%clk 0:02:43]} 12. exd5 {[%clk 0:02:17]}  Nb8 {[%clk 0:02:35]} 13. Rg1 {[%clk 0:02:15]}  Nbd7 {[%clk 0:02:24]} 14. g4 {[%clk 0:02:13]}  b5 {[%clk 0:02:20]} 15. g5 {[%clk 0:01:57]}  hxg5 {[%clk 0:02:21]} 16. Bxg5 {[%clk 0:01:57]}  Nb6 {[%clk 0:02:21]} 17. Nd4 {[%clk 0:01:45]}  Ne4 {[%clk 0:02:12]} 18. Qf4 {[%clk 0:01:32]}  Nxg5 {[%clk 0:02:00]} 19. Nc6 {[%clk 0:01:33]}  Qd7 {[%clk 0:01:59]} 20. Nxe7+ {[%clk 0:01:33]}  Qxe7 {[%clk 0:01:59]} 21. Rxg5 {[%clk 0:01:34]}  Rae8 {[%clk 0:01:53]} 22. Bd3 {[%clk 0:01:34]}  g6 {[%clk 0:01:09]} 23. Bxg6 {[%clk 0:01:14]}  f6 {[%clk 0:00:27]} 24. Rg3 {[%clk 0:00:54]} 1-0

[Event "January 9 Late 2024"]
[Site "https://www.chess.com"]
[Date "2024.01.09"]
[Round "11"]
[White "Spichkin, Alexander"]
[Black "Harriott, Tyrell"]
[Result "0-1"]
[Board "92"]
[TimeControl "180+1"]
[WhiteFideId "4144074"]
[BlackFideId "2086484"]
[WhiteElo "2473"]
[BlackElo "2375"]
[WhiteTeam "RUS"]
[BlackTeam "USA"]
[WhiteClock "0:00:00"]
[BlackClock "0:00:51"]

1. f4 {[%clk 0:03:00]}  e6 {[%clk 0:02:59]} 2. Nf3 {[%clk 0:02:57]}  d5 {[%clk 0:02:58]} 3. e3 {[%clk 0:02:58]}  f5 {[%clk 0:02:58]} 4. Be2 {[%clk 0:02:57]}  Bd6 {[%clk 0:02:57]} 5. O-O {[%clk 0:02:57]}  Nf6 {[%clk 0:02:57]} 6. b3 {[%clk 0:02:58]}  O-O {[%clk 0:02:55]} 7. Bb2 {[%clk 0:02:57]}  Nbd7 {[%clk 0:02:54]} 8. Ne5 {[%clk 0:02:56]}  Qe7 {[%clk 0:02:50]} 9. Rf3 {[%clk 0:02:54]}  c5 {[%clk 0:02:45]} 10. Rg3 {[%clk 0:02:44]}  b6 {[%clk 0:02:39]} 11. d3 {[%clk 0:02:44]}  Bb7 {[%clk 0:02:38]} 12. Nd2 {[%clk 0:02:44]}  d4 {[%clk 0:02:34]} 13. Ndc4 {[%clk 0:02:42]}  Bxe5 {[%clk 0:02:29]} 14. fxe5 {[%clk 0:02:42]}  Nd5 {[%clk 0:02:25]} 15. exd4 {[%clk 0:02:42]}  b5 {[%clk 0:02:18]} 16. Nd6 {[%clk 0:02:41]}  Bc6 {[%clk 0:02:14]} 17. c4 {[%clk 0:02:40]}  Nf4 {[%clk 0:02:07]} 18. Bf3 {[%clk 0:02:30]}  Bxf3 {[%clk 0:01:51]} 19. Qxf3 {[%clk 0:02:30]}  Ng6 {[%clk 0:01:51]} 20. Re1 {[%clk 0:02:09]}  cxd4 {[%clk 0:01:33]} 21. Bxd4 {[%clk 0:02:08]}  Ndxe5 {[%clk 0:01:23]} 22. Rxe5 {[%clk 0:01:53]}  Qxd6 {[%clk 0:01:21]} 23. Qe3 {[%clk 0:01:44]}  Rfd8 {[%clk 0:01:02]} 24. Bc5 {[%clk 0:01:27]}  Qxe5 {[%clk 0:00:59]} 25. Qxe5 {[%clk 0:01:27]}  Nxe5 {[%clk 0:00:59]} 26. d4 {[%clk 0:01:28]}  Nd7 {[%clk 0:00:56]} 27. Be7 {[%clk 0:01:27]}  Re8 {[%clk 0:00:55]} 28. Bd6 {[%clk 0:01:26]}  bxc4 {[%clk 0:00:55]} 29. bxc4 {[%clk 0:01:26]}  e5 {[%clk 0:00:56]} 30. d5 {[%clk 0:01:25]}  e4 {[%clk 0:00:56]} 31. c5 {[%clk 0:01:22]}  e3 {[%clk 0:00:54]} 32. Kf1 {[%clk 0:01:22]}  e2+ {[%clk 0:00:53]} 33. Ke1 {[%clk 0:01:23]}  Rac8 {[%clk 0:00:53]} 34. c6 {[%clk 0:01:23]}  Nf6 {[%clk 0:00:53]} 35. Bb4 {[%clk 0:00:00]}  Nxd5 {[%clk 0:00:51]} 0-1

[Event "January 9 Late 2024"]
[Site "https://www.chess.com"]
[Date "2024.01.09"]
[Round "11"]
[White "Nilsen, Tobias Lang"]
[Black "Sarkar, Justin"]
[Result "1-0"]
[Board "93"]
[TimeControl "180+1"]
[WhiteFideId "1521624"]
[BlackFideId "2010011"]
[WhiteElo "2469"]
[BlackElo "2331"]
[WhiteTeam "NOR"]
[BlackTeam "USA"]
[WhiteClock "0:00:18"]
[BlackClock "0:00:00"]

1. e4 {[%clk 0:03:00]}  e5 {[%clk 0:02:40]} 2. Nf3 {[%clk 0:02:58]}  Nc6 {[%clk 0:02:40]} 3. Bc4 {[%clk 0:02:56]}  Bc5 {[%clk 0:02:38]} 4. c3 {[%clk 0:02:57]}  Qf6 {[%clk 0:02:38]} 5. d3 {[%clk 0:02:50]}  h6 {[%clk 0:02:34]} 6. a4 {[%clk 0:02:47]}  a5 {[%clk 0:02:31]} 7. Be3 {[%clk 0:02:44]}  Bxe3 {[%clk 0:02:06]} 8. fxe3 {[%clk 0:02:45]}  Qe7 {[%clk 0:02:05]} 9. O-O {[%clk 0:02:44]}  Nf6 {[%clk 0:02:04]} 10. Nbd2 {[%clk 0:02:44]}  d6 {[%clk 0:02:04]} 11. Nh4 {[%clk 0:02:38]}  Be6 {[%clk 0:01:29]} 12. Bxe6 {[%clk 0:02:24]}  Qxe6 {[%clk 0:01:30]} 13. d4 {[%clk 0:02:24]}  Ne7 {[%clk 0:01:25]} 14. Nf5 {[%clk 0:02:20]}  Nxf5 {[%clk 0:01:21]} 15. exf5 {[%clk 0:02:21]}  Qe7 {[%clk 0:01:19]} 16. Qb3 {[%clk 0:02:18]}  O-O {[%clk 0:01:14]} 17. Rae1 {[%clk 0:02:15]}  e4 {[%clk 0:01:08]} 18. c4 {[%clk 0:01:49]}  c6 {[%clk 0:01:08]} 19. d5 {[%clk 0:01:44]}  cxd5 {[%clk 0:01:05]} 20. cxd5 {[%clk 0:01:44]}  Rfc8 {[%clk 0:00:53]} 21. Nc4 {[%clk 0:01:11]}  Nxd5 {[%clk 0:00:45]} 22. f6 {[%clk 0:01:11]}  Qe6 {[%clk 0:00:20]} 23. fxg7 {[%clk 0:01:06]}  Nb4 {[%clk 0:00:19]} 24. Nd2 {[%clk 0:00:52]}  Qxb3 {[%clk 0:00:18]} 25. Nxb3 {[%clk 0:00:53]}  Kxg7 {[%clk 0:00:17]} 26. Nd4 {[%clk 0:00:51]}  d5 {[%clk 0:00:12]} 27. Rf5 {[%clk 0:00:49]}  Nc2 {[%clk 0:00:08]} 28. Ref1 {[%clk 0:00:47]}  Nxd4 {[%clk 0:00:05]} 29. Rxf7+ {[%clk 0:00:46]}  Kg8 {[%clk 0:00:05]} 30. exd4 {[%clk 0:00:45]}  Rf8 {[%clk 0:00:05]} 31. R7f5 {[%clk 0:00:31]}  Rxf5 {[%clk 0:00:04]} 32. Rxf5 {[%clk 0:00:32]}  Rc8 {[%clk 0:00:03]} 33. Kf2 {[%clk 0:00:17]}  Rc2+ {[%clk 0:00:00]} 34. Kg3 {[%clk 0:00:18]} 1-0

[Event "January 9 Late 2024"]
[Site "https://www.chess.com"]
[Date "2024.01.09"]
[Round "11"]
[White "Silvestre, Christian"]
[Black "Czerw, Dawid"]
[Result "0-1"]
[Board "94"]
[TimeControl "180+1"]
[WhiteFideId "30956269"]
[BlackFideId "1145746"]
[WhiteElo "2319"]
[BlackElo "2466"]
[WhiteTeam "USA"]
[BlackTeam "POL"]
[WhiteClock "0:00:43"]
[BlackClock "0:02:25"]

1. e4 {[%clk 0:03:00]}  c5 {[%clk 0:03:00]} 2. Nc3 {[%clk 0:02:59]}  Nc6 {[%clk 0:03:01]} 3. f4 {[%clk 0:02:58]}  g6 {[%clk 0:03:02]} 4. Nf3 {[%clk 0:02:59]}  Bg7 {[%clk 0:03:03]} 5. Bc4 {[%clk 0:02:59]}  e6 {[%clk 0:03:03]} 6. d3 {[%clk 0:02:59]}  Nge7 {[%clk 0:03:03]} 7. f5 {[%clk 0:02:59]}  d5 {[%clk 0:03:03]} 8. Bb3 {[%clk 0:02:58]}  Nd4 {[%clk 0:03:02]} 9. fxe6 {[%clk 0:02:56]}  fxe6 {[%clk 0:03:02]} 10. O-O {[%clk 0:02:54]}  O-O {[%clk 0:03:02]} 11. Nxd4 {[%clk 0:02:54]}  cxd4 {[%clk 0:03:03]} 12. Rxf8+ {[%clk 0:02:48]}  Qxf8 {[%clk 0:03:03]} 13. Ne2 {[%clk 0:02:47]}  dxe4 {[%clk 0:03:03]} 14. dxe4 {[%clk 0:02:47]}  Nc6 {[%clk 0:03:04]} 15. Nf4 {[%clk 0:02:39]}  Kh8 {[%clk 0:03:03]} 16. Nxe6 {[%clk 0:02:33]}  Bxe6 {[%clk 0:03:03]} 17. Bxe6 {[%clk 0:02:34]}  Qd6 {[%clk 0:03:03]} 18. Bd5 {[%clk 0:02:28]}  Be5 {[%clk 0:03:04]} 19. h3 {[%clk 0:02:17]}  Rf8 {[%clk 0:03:04]} 20. Bh6 {[%clk 0:02:16]}  Bh2+ {[%clk 0:03:00]} 21. Kh1 {[%clk 0:02:14]}  Rf2 {[%clk 0:03:00]} 22. Qg4 {[%clk 0:02:01]}  Ne7 {[%clk 0:02:56]} 23. c3 {[%clk 0:01:28]}  Be5 {[%clk 0:02:56]} 24. cxd4 {[%clk 0:01:27]}  Bxd4 {[%clk 0:02:56]} 25. Rc1 {[%clk 0:01:25]}  Bc5 {[%clk 0:02:51]} 26. b4 {[%clk 0:01:21]}  Bb6 {[%clk 0:02:46]} 27. Bg5 {[%clk 0:00:52]}  Bc7 {[%clk 0:02:32]} 28. Rxc7 {[%clk 0:00:46]}  Qxc7 {[%clk 0:02:29]} 29. Qe6 {[%clk 0:00:45]}  Nxd5 {[%clk 0:02:25]} 30. exd5 {[%clk 0:00:43]}  Rf1# {[%clk 0:02:25]} 0-1

[Event "January 9 Late 2024"]
[Site "https://www.chess.com"]
[Date "2024.01.09"]
[Round "11"]
[White "Koziol, Kamil"]
[Black "Cardozo Munar, Carlos Eduardo"]
[Result "0-1"]
[Board "96"]
[TimeControl "180+1"]
[WhiteFideId "1161555"]
[BlackFideId "4409477"]
[WhiteElo "2440"]
[BlackElo "2247"]
[WhiteTeam "POL"]
[BlackTeam "COL"]
[WhiteClock "0:00:11"]
[BlackClock "0:00:55"]

1. e4 {[%clk 0:03:00]}  e6 {[%clk 0:02:59]} 2. d4 {[%clk 0:03:01]}  d5 {[%clk 0:03:00]} 3. Nc3 {[%clk 0:03:01]}  Nf6 {[%clk 0:02:59]} 4. Bg5 {[%clk 0:03:00]}  Be7 {[%clk 0:02:59]} 5. e5 {[%clk 0:02:59]}  Nfd7 {[%clk 0:02:59]} 6. Bxe7 {[%clk 0:02:58]}  Qxe7 {[%clk 0:03:00]} 7. Qg4 {[%clk 0:02:59]}  O-O {[%clk 0:02:57]} 8. f4 {[%clk 0:02:38]}  c5 {[%clk 0:02:57]} 9. Nf3 {[%clk 0:02:34]}  cxd4 {[%clk 0:02:58]} 10. Nxd4 {[%clk 0:02:28]}  Nc6 {[%clk 0:02:58]} 11. O-O-O {[%clk 0:02:26]}  Nxd4 {[%clk 0:02:54]} 12. Rxd4 {[%clk 0:02:26]}  a6 {[%clk 0:02:47]} 13. h4 {[%clk 0:02:19]}  b5 {[%clk 0:02:45]} 14. h5 {[%clk 0:02:20]}  Rd8 {[%clk 0:02:37]} 15. Rd3 {[%clk 0:02:15]}  f5 {[%clk 0:02:32]} 16. exf6 {[%clk 0:02:05]}  Nxf6 {[%clk 0:02:31]} 17. Qf3 {[%clk 0:01:45]}  Bb7 {[%clk 0:02:30]} 18. Rg1 {[%clk 0:01:36]}  Rac8 {[%clk 0:02:30]} 19. Qd1 {[%clk 0:01:20]}  b4 {[%clk 0:02:23]} 20. Ne2 {[%clk 0:01:14]}  Ne4 {[%clk 0:02:23]} 21. Rf3 {[%clk 0:01:01]}  Qf6 {[%clk 0:02:23]} 22. Nd4 {[%clk 0:01:00]}  Rc7 {[%clk 0:02:07]} 23. g4 {[%clk 0:00:59]}  Rdc8 {[%clk 0:02:05]} 24. g5 {[%clk 0:00:58]}  Qxd4 {[%clk 0:01:31]} 25. Bd3 {[%clk 0:00:16]}  a5 {[%clk 0:01:23]} 26. f5 {[%clk 0:00:16]}  Ba6 {[%clk 0:01:15]} 27. Rgf1 {[%clk 0:00:10]}  Bxd3 {[%clk 0:01:06]} 28. Rxd3 {[%clk 0:00:10]}  Rxc2+ {[%clk 0:00:55]} 29. Kb1 {[%clk 0:00:11]} 0-1

[Event "January 9 Late 2024"]
[Site "https://www.chess.com"]
[Date "2024.01.09"]
[Round "11"]
[White "Bjelobrk, Igor"]
[Black "Korol, Dimitry"]
[Result "1-0"]
[Board "97"]
[TimeControl "180+1"]
[WhiteFideId "4300726"]
[BlackFideId "14108003"]
[WhiteElo "2577"]
[BlackElo "2337"]
[WhiteTeam "AUS"]
[BlackTeam "UKR"]
[WhiteClock "0:01:12"]
[BlackClock "0:00:00"]

1. d4 {[%clk 0:03:00]}  Nf6 {[%clk 0:02:59]} 2. c4 {[%clk 0:03:00]}  c5 {[%clk 0:03:00]} 3. d5 {[%clk 0:03:00]}  b5 {[%clk 0:03:00]} 4. cxb5 {[%clk 0:03:00]}  a6 {[%clk 0:03:00]} 5. bxa6 {[%clk 0:03:00]}  g6 {[%clk 0:03:00]} 6. Nc3 {[%clk 0:02:57]}  Bxa6 {[%clk 0:03:01]} 7. e4 {[%clk 0:02:55]}  Bxf1 {[%clk 0:03:01]} 8. Kxf1 {[%clk 0:02:56]}  d6 {[%clk 0:03:02]} 9. g3 {[%clk 0:02:55]}  Bg7 {[%clk 0:03:03]} 10. Nf3 {[%clk 0:02:55]}  O-O {[%clk 0:03:04]} 11. Kg2 {[%clk 0:02:55]}  Nbd7 {[%clk 0:03:04]} 12. a4 {[%clk 0:02:48]}  Qb8 {[%clk 0:03:04]} 13. Ra3 {[%clk 0:02:46]}  Qb4 {[%clk 0:03:02]} 14. Qc2 {[%clk 0:02:40]}  Nb6 {[%clk 0:02:59]} 15. Rb3 {[%clk 0:02:35]}  Qa5 {[%clk 0:02:58]} 16. Rb5 {[%clk 0:02:35]}  Qa6 {[%clk 0:02:56]} 17. b3 {[%clk 0:02:35]}  Rfb8 {[%clk 0:02:39]} 18. Bd2 {[%clk 0:02:20]}  Ne8 {[%clk 0:02:39]} 19. Na2 {[%clk 0:02:11]}  Nc7 {[%clk 0:02:19]} 20. Ra5 {[%clk 0:02:11]}  Qb7 {[%clk 0:02:15]} 21. Rxa8 {[%clk 0:02:09]}  Nbxa8 {[%clk 0:01:48]} 22. Rb1 {[%clk 0:02:07]}  Qa7 {[%clk 0:01:16]} 23. b4 {[%clk 0:02:04]}  cxb4 {[%clk 0:00:42]} 24. Rxb4 {[%clk 0:02:02]}  Re8 {[%clk 0:00:20]} 25. Qc6 {[%clk 0:01:54]}  Kf8 {[%clk 0:00:16]} 26. Rb7 {[%clk 0:01:50]}  Qa6 {[%clk 0:00:13]} 27. Nb4 {[%clk 0:01:42]}  Qe2 {[%clk 0:00:11]} 28. Rxc7 {[%clk 0:01:27]}  Nxc7 {[%clk 0:00:12]} 29. Qxc7 {[%clk 0:01:27]}  h5 {[%clk 0:00:08]} 30. h4 {[%clk 0:01:26]}  Bf6 {[%clk 0:00:05]} 31. Be3 {[%clk 0:01:24]}  Qb2 {[%clk 0:00:04]} 32. Qc4 {[%clk 0:01:22]}  Ra8 {[%clk 0:00:03]} 33. Nc6 {[%clk 0:01:18]}  Qa1 {[%clk 0:00:01]} 34. a5 {[%clk 0:01:17]}  Kg7 {[%clk 0:00:00]} 35. Bb6 {[%clk 0:01:12]} 1-0